Cogmind - Beta 11.1 @@@ ROGUE MODE // 2022.04.30 @ 19:23:18 Player: Haldron Result: Destroyed by H-77 Assassin with High-powered Shotgun Performance ------------- Evolutions (7) 3500 Regions Visited (10) 2000 Robots Destroyed (250) 1250 Value Destroyed (7661) 7661 Prototype IDs (15) 300 Alien Tech Used (0) 0 Bonus (1085) 1085 TOTAL SCORE: 15796 Bonus ------- High Alert Combat Kills 565 Follower Combat Kills 881 Friendly Fire -361 Cogmind --------- Core Integrity 0/1300 Matter 255/300 Energy 100/100 System Corruption 4% Temperature Cool (0) Movement Hovering (110) Ox1 Location -3/Research Parts ------- > --- POWER (2) -------- (None) > --- PROPULSION (4) --- Improved Gyrokinetic Inverter > --- UTILITY (12) ----- Large Storage Unit Advanced Visual Processing Unit Advanced Signal Interpreter Advanced Melee Analysis Suite Advanced Target Analyzer Advanced Target Analyzer Advanced Target Analyzer Advanced Target Analyzer > --- WEAPON (3) ------- (None) > --- INVENTORY (15) --- Armored Huge Wheel Armored Huge Wheel Improved Gyrokinetic Inverter Powered Armor Authchip [Storage] Authchip [Processor] Authchip [Weapon] Advanced System Restoration Module Drone Bay (2/2) Advanced Plasma Cannon KE Penetrator Hardcell Cannon Peak State ------------ > --- POWER ------------ Light Antimatter Reactor Micro Antimatter Reactor > --- PROPULSION ------- Improved Antigrav System Improved Antigrav System Improved Antigrav System Improved Antigrav System > --- UTILITY ---------- High-capacity Storage Unit Advanced Visual Processing Unit Advanced Signal Interpreter Advanced Melee Analysis Suite Advanced Melee Analysis Suite Advanced Target Analyzer Advanced Target Analyzer Advanced Target Analyzer Advanced Transmission Jammer Improved Dynamic Insulation System > --- WEAPON ----------- Phasing Sabre Phasing Sabre Plasma Sword > --- INVENTORY -------- Angular Momentum Engine Light Particle Reactor Medium Treads Advanced Power Amplifier Large Storage Unit Matter Compressor Advanced Sensor Array Powered Armor Improved Force Field Advanced Recalibrator Drone Bay Gauss Rifle Coil Gun KE Penetrator Compact Mass Driver Tiamat Missile Launcher Tiamat Missile Launcher Tiamat Missile Launcher Axe Phasing Sabre [Rating: 126] Favorites ----------- Power Ion Engine Engine Ion Engine Power Core Micro Fission Core Reactor Light Antimatter Reactor Propulsion Light Treads Treads Light Treads Leg Flexi-carbon Leg Wheel Armored Huge Wheel Hover Unit Improved Antigrav System Flight Unit Improved Flight Unit Utility Large Storage Unit Device Improved Transmission Jammer Storage Large Storage Unit Processor Advanced Target Analyzer Hackware Hacking Suite Protection Improved Medium Armor Plating Weapon Plasma Sword Energy Gun Improved Medium Laser Energy Cannon Particle Cannon Ballistic Gun Heavy Assault Rifle Ballistic Cannon Light Cannon Launcher Mini Grenade Launcher Impact Weapon Powered Hammer Slashing Weapon Plasma Sword Build | -11 -10 -9 -9 -8 -7 -6 -5 -4 -4 -3 ------- Run | Scr Mat Mat Sto Mat Fac Fac Fac Fac Ext Res Slots Evolved 14 | . . 2 . 2 2 2 2 2 . 2 Power 1 | . . . . . . . . 1 . . Propulsion 2 | . . 2 . . . . . . . . Utility 10 | . . . . 2 2 1 2 1 . 2 Weapon 1 | . . . . . . 1 . . . . Parts Attached 317 | 8 15 33 23 33 20 3 19 38 44 81 Power 36 | 1 3 3 2 3 . . 1 3 4 16 Engine 20 | 1 3 3 2 3 . . 1 . 1 6 Core 3 | . . . . . . . . 1 2 . Reactor 13 | . . . . . . . . 2 1 10 Propulsion 74 | 2 5 15 5 8 7 . . 3 8 21 Treads 18 | . 2 12 3 . . . . . . 1 Leg 7 | 2 1 . . . 1 . . . 2 1 Wheel 28 | . 2 2 2 6 4 . . 3 6 3 Hover 12 | . . . . . 1 . . . . 11 Flight 9 | . . 1 . 2 1 . . . . 5 Utility 103 | 2 2 5 3 9 9 1 10 24 15 23 Device 45 | 1 . 1 . 4 3 . 7 13 6 10 Storage 11 | 1 2 1 . . 2 . . 3 1 1 Processor 16 | . . . . . 2 1 1 1 3 8 Hackware 4 | . . . . 1 1 . 1 . . 1 Protection 27 | . . 3 3 4 1 . 1 7 5 3 Artifact . | . . . . . . . . . . . Weapon 104 | 3 5 10 13 13 4 2 8 8 17 21 Energy Gun 4 | 1 1 . . . 2 . . . . . Energy Cannon 2 | . . . 1 . . . . . . 1 Ballistic Gun 27 | 2 4 6 4 4 . . . . 4 3 Ballistic Cannon 4 | . . 3 . . . . . . . 1 Launcher 21 | . . . 3 5 . . 2 3 5 3 Special Weapon . | . . . . . . . . . . . Impact Weapon 11 | . . 1 5 3 1 . 1 . . . Slashing Weapon 35 | . . . . 1 1 2 5 5 8 13 Piercing Weapon . | . . . . . . . . . . . Special Melee Weapon . | . . . . . . . . . . . Unidentified Prototypes 13 | . 1 2 1 . 2 . 1 4 . 2 Parts Lost 94 | . 8 7 5 14 . . 5 5 13 37 Power 13 | . 1 1 . 2 . . 1 . 1 7 Propulsion 34 | . 3 4 3 5 . . . 1 4 14 Utility 29 | . 1 1 2 3 . . 4 3 6 9 Weapon 18 | . 3 1 . 4 . . . 1 2 7 Highest Loss Streak 11 | . 2 6 2 8 . . 3 1 4 11 To Critical Strikes . | . . . . . . . . . . . Average Slot Usage (%) 90 | . 91 95 97 89 90 85 86 87 89 89 Engine 6 | . 14 10 11 8 7 6 4 . 4 3 Core 1 | . . . . . . . . 5 2 1 Reactor 1 | . . . . . . . . 4 2 2 Treads 9 | . 12 31 32 7 . . . . . . Leg 1 | . 3 . . . 1 . . . 4 2 Wheel 10 | . 12 10 11 15 17 13 11 9 9 5 Hover 1 | . . . . . . . . . . 7 Flight 1 | . . 1 . 9 2 . . . . 1 Device 7 | . 2 . . 12 14 6 14 15 7 8 Storage 8 | . 18 11 11 9 7 6 5 5 5 5 Processor 11 | . . . . . 7 19 17 16 23 33 Hackware 3 | . . . . 2 7 6 8 10 7 1 Protection 4 | . . 7 9 6 7 6 3 3 5 3 Energy Gun 2 | . 13 1 . . 2 . . . . . Ballistic Gun 6 | . 14 13 17 8 . . . . . 2 Impact Weapon 1 | . . . 2 6 6 . 1 . . . Slashing Weapon 6 | . . . . . 3 20 14 13 11 7 Naked Turns . | . . . . . . . . . . . Heaviest Build 106 | 15 40 34 38 48 44 45 52 74 104 106 Greatest Support 72 | 20 20 43 40 32 56 56 56 72 72 60 Greatest Overweight (x) 6 | 4 2 2 2 3 1 . . 1 6 6 Average Overweight (x) . | . 1 1 1 1 . . . . 1 . Largest Inventory Capacity 20 | 8 15 15 15 15 15 15 15 20 20 20 Average Capacity 15 | 7 13 15 15 15 14 15 15 15 20 15 Most Carried 20 | 5 15 15 15 15 15 15 15 20 20 20 Average Carried 14 | 2 10 14 14 14 14 14 13 15 19 14 Final Capacity 20 | 8 15 15 15 15 15 15 15 20 20 15 Final Carried 20 | 5 15 15 15 15 15 15 15 20 20 14 Class Distribution -------------------- 37% | Mutant 20% | Scavenger-Mutant 10% | Hacker-Assassin 7% | Assassin 7% | Hacker-Mutant 6% | Hacker-Gladiator 5% | Scavenger-Scout Dominant Class ---------------- Mutant | -10/Materials Scavenger-Mutant | -9/Materials Scavenger-Mutant | -9/Storage Scavenger-Mutant | -8/Materials Mutant | -7/Factory Assassin | -6/Factory Hacker-Assassin | -5/Factory Hacker-Assassin | -4/Factory Mutant | -4/Extension Scavenger-Scout | -3/Research Resources | -11 -10 -9 -9 -8 -7 -6 -5 -4 -4 -3 ----------- Run | Scr Mat Mat Sto Mat Fac Fac Fac Fac Ext Res Matter Collected 6268 | 307 365 931 792 711 200 30 328 870 705 1029 Remotely . | . . . . . . . . . . . Salvage Created 10908 | 87 1029 1238 1271 1353 219 132 800 1324 1424 2031 Parts 528 | 3 56 82 69 63 10 8 27 59 57 94 Haulers Intercepted 15 | . 2 5 2 1 . . 1 2 1 1 Recyclers Shooed 16 | . 1 3 5 3 1 . . 2 . 1 Parts Field Recycled . | . . . . . . . . . . . Retrieved Matter . | . . . . . . . . . . . Parts Self-Destructed . | . . . . . . . . . . . Prevented . | . . . . . . . . . . . Kills | -11 -10 -9 -9 -8 -7 -6 -5 -4 -4 -3 ------- Run | Scr Mat Mat Sto Mat Fac Fac Fac Fac Ext Res Combat Hostiles Destroyed 145 | . 20 25 21 20 1 . 10 12 15 21 Melee 43 | . . . . 5 1 . 4 9 11 13 Guns 60 | . 20 16 17 6 . . . . . 1 Cannons 11 | . . 9 . . . . . . . 2 AOE 28 | . . . 4 7 . . 5 3 4 5 Classes Destroyed 18 | 2 6 2 2 3 1 . . . 2 . Worker 16 | . . 1 1 3 1 . . 5 3 2 Builder 15 | . 2 3 . 2 . . 1 1 2 4 Tunneler 4 | 1 1 . . 1 . . . . 1 . Hauler 15 | . 2 5 2 1 . . 1 2 1 1 Recycler 32 | 1 1 2 4 7 2 1 2 3 4 5 Operator 6 | . 1 . 1 2 . . . 1 . 1 Watcher 15 | . 2 4 2 1 1 1 . 2 1 1 Swarmer 36 | . 6 12 4 2 . . . . 5 7 Grunt 60 | . 14 5 10 7 . . 7 3 8 6 Brawler 2 | . . . 1 1 . . . . . . Protector 1 | . . . 1 . . . . . . . Sentry 20 | . . 8 5 4 . . . 2 . 1 Specialist 4 | . . . . 4 . . . . . . Hunter 3 | . . . . 1 . . . 2 . . Programmer 17 | . . . . . 1 . 3 5 1 7 Heavy 1 | . . . . 1 . . . . . . Behemoth 1 | . . . . . . . . . 1 . Savage 1 | . . . . . . . . . 1 . Butcher 1 | . . . . . . . . . 1 . Best Kill Streak 11 | 1 5 7 5 11 2 2 5 4 7 7 Combat Bots Only 6 | . 5 6 4 5 1 . 4 3 5 4 Max Kills in Single Turn 4 | 1 1 1 2 2 1 1 2 1 3 4 Gunslinging . | . . . . . . . . . . . Exploded 2 | . . . 2 1 . . 1 1 2 2 Melee 1 | . . . . 1 1 . 1 1 1 1 Uniques/NPCs Destroyed . | . . . . . . . . . . . Combat | -11 -10 -9 -9 -8 -7 -6 -5 -4 -4 -3 -------- Run | Scr Mat Mat Sto Mat Fac Fac Fac Fac Ext Res Damage Taken 15523 | . 1114 1641 1230 2290 74 . 1006 1622 2042 4504 Core 2751 | . 172 199 150 484 14 . 80 130 219 1303 Absorbed by Shields 164 | . . . . . . . . . 164 . Redirected to Shielding 105 | . . . . . . . . . 56 49 Regen/Repaired (Parts) 534 | . . . . . 271 67 . 196 . . Core Remaining (%) 64 | 100 31 . 12 12 98 100 92 . 69 . Volleys Fired 404 | 6 86 104 93 61 . . 13 10 9 22 Largest 3 | 2 2 2 2 2 . . 1 1 3 3 Hottest 135 | 70 76 76 68 46 . . 30 46 135 91 Shots Fired 686 | 12 161 204 163 78 . . 13 10 17 28 Gun 506 | 12 161 124 144 48 . . . . 4 13 Cannon 96 | . . 80 9 . . . . . . 7 Launcher 84 | . . . 10 30 . . 13 10 13 8 Special . | . . . . . . . . . . . Kinetic 504 | 9 92 187 144 48 . . . . 4 20 Thermal 98 | 3 69 17 9 . . . . . . . Explosive 84 | . . . 10 30 . . 13 10 13 8 Electromagnetic . | . . . . . . . . . . . Robot Hit Streak 14 | 4 11 12 14 13 . . . 4 11 3 Robot Miss Streak 5 | 1 3 3 5 2 . . . 1 1 4 Penetration Max 1 | . . . . . . . . . 1 . Secondary Targets 10 | . 5 3 1 1 . . . . . . Max Gunslinging Chain 1 | . 1 1 1 1 . . . . . . Shots Hit Robots 643 | 8 98 127 98 77 6 4 27 67 64 67 Core Hits 372 | 3 42 54 46 60 4 2 34 33 48 46 Critical Kills 2 | . 1 . . 1 . . . . . . Critical Parts Destroyed 7 | . 1 . . 3 . . 1 . 2 . Critical Strikes 45 | . 8 2 . 7 . . 3 7 9 9 Burn 7 | . 6 1 . . . . . . . . Destroy 4 | . 2 . . . . . . . 2 . Blast 2 | . . 1 . . . . . . . 1 Smash 5 | . . . . 4 . . 1 . . . Sever 27 | . . . . 3 . . 2 7 7 8 Melee Attacks 437 | . . 2 30 41 18 11 64 88 67 116 Impact 74 | . . 2 30 26 8 . 8 . . . Slashing 363 | . . . . 15 10 11 56 88 67 116 Piercing . | . . . . . . . . . . . Sneak Attacks 45 | . . . 2 5 4 2 6 12 4 10 Combat Hostiles 1 | . . . . . . . . . 1 . Follow-up Attacks 57 | . . . . 2 1 2 8 17 15 12 Damage Inflicted 25388 | 103 1328 2016 2211 3399 351 251 2130 4652 4625 4322 Guns 4767 | 103 1328 1141 1465 573 . . . . 96 61 Cannons 1101 | . . 875 . . . . . . . 226 Explosions 7064 | . . . 548 1369 . . 862 1178 2066 1041 Melee 12437 | . . . 198 1457 351 251 1258 3474 2454 2994 Ramming 19 | . . . . . . . 10 . 9 . Kinetic 5041 | 79 697 1844 1465 573 . . . . 96 287 Thermal 827 | 24 631 172 . . . . . . . . Explosive 6901 | . . . 548 1369 . . 699 1178 2066 1041 Electromagnetic 163 | . . . . . . . 163 . . . Impact 1572 | . . . 198 1009 71 . 294 . . . Slashing 10865 | . . . . 448 280 251 964 3474 2454 2994 Piercing . | . . . . . . . . . . . Highest Corruption 8 | . 1 . . . 1 . 8 6 5 5 Average Corruption 3 | . 1 . . . 1 . 7 3 4 2 Corruption Purged 8 | . . . . . . . . 1 1 6 Corruption Blocked . | . . . . . . . . . . . Effects 92 | . 9 . . . 2 . 23 23 27 8 Message Errors 19 | . 1 . . . . . 6 5 6 1 Matter Fused 18 | . . . . . . . 5 6 5 2 Heat Flow Errors 15 | . 1 . . . 1 . 4 4 4 1 Energy Discharges 14 | . 1 . . . . . 2 5 4 2 Parts Rejected 2 | . . . . . . . 1 . . 1 Data Loss (minor) 9 | . 1 . . . . . 3 2 2 1 Data Loss (major) 9 | . 1 . . . 1 . 2 1 4 . Misfires 3 | . 3 . . . . . . . . . Alerts 1 | . . . . . . . . . 1 . Weapon Failures 2 | . 1 . . . . . . . 1 . Overload Shots . | . . . . . . . . . . . Overflow Damage 1809 | . . . 125 287 79 61 264 421 140 432 Projectiles . | . . . . . . . . . . . Explosions 230 | . . . 43 9 . . 11 65 34 68 Melee 1579 | . . . 82 278 79 61 253 356 106 364 Knockbacks 13 | . . 2 2 3 1 . 3 . . 2 Impact 9 | . . . 2 3 1 . 3 . . . Kinetic 4 | . . 2 . . . . . . . 2 Secondary . | . . . . . . . . . . . Self-Inflicted Damage 310 | . . . 120 122 . . 5 . 4 59 Shots 9 | . . . 3 5 . . . . . 1 Rammed 2 | . . . . . . . 1 . 1 . Targets Rammed 2 | . . . . . . . 1 . 1 . Kicked . | . . . . . . . . . . . Crushed . | . . . . . . . . . . . Highest Temperature 312 | 18 312 233 213 17 128 . 188 234 221 186 Average Temperature 62 | 9 89 52 35 7 76 . 92 87 58 23 Received Heat Transfer 3057 | . 540 450 561 567 . . 153 112 294 380 Effects 3 | . 2 1 . . . . . . . . Interference 3 | . 2 1 . . . . . . . . Siege Activations . | . . . . . . . . . . . Robots Corrupted . | . . . . . . . . . . . Combat Hostiles . | . . . . . . . . . . . Parts Fried 11 | . . . 2 4 2 . 3 . . . Impact Corruptions 17 | . . . 2 9 2 . 4 . . . Robots Melted . | . . . . . . . . . . . Combat Hostiles . | . . . . . . . . . . . Parts Melted 8 | 1 5 1 . 1 . . . . . . Heat Transferred 2590 | 74 2072 444 . . . . . . . . Parts Sabotaged . | . . . . . . . . . . . Parts Stolen . | . . . . . . . . . . . Parts Stripped . | . . . . . . . . . . . Power Chain Reactions . | . . . . . . . . . . . Missiles Intercepted . | . . . . . . . . . . . Alert | -11 -10 -9 -9 -8 -7 -6 -5 -4 -4 -3 ------- Run | Scr Mat Mat Sto Mat Fac Fac Fac Fac Ext Res Peak Influence 965 | 10 295 427 728 679 330 148 481 393 430 965 Initial 308 | . 6 . 144 255 308 60 72 63 133 225 Average 282 | 6 121 251 465 341 214 125 221 170 162 605 Maximum Alert Level 3 | . 1 2 3 2 1 . 2 1 2 3 Low Security (%) 40 | 100 77 33 10 8 43 100 40 62 55 . Level 1 38 | . 22 54 28 62 56 . 51 37 42 27 Level 2 14 | . . 12 59 28 . . 8 . 2 26 Level 3 6 | . . . 2 . . . . . . 46 Level 4 . | . . . . . . . . . . . Level 5 . | . . . . . . . . . . . High Security . | . . . . . . . . . . . Max Security . | . . . . . . . . . . . Squads Dispatched 50 | . 6 3 9 7 1 1 2 10 2 9 Investigation 13 | . 3 2 2 2 . . 1 1 2 . Extermination 9 | . . . . . 1 . 1 4 . 3 Reinforcement 18 | . 3 1 2 5 . 1 . 4 . 2 Assault 8 | . . . 5 . . . . . . 3 Garrison 2 | . . . . . . . . 1 . 1 Intercept . | . . . . . . . . . . . Searches Triggered . | . . . . . . . . . . . Construction Impeded . | . . . . . . . . . . . Haulers Reinforced 2 | . . . . . . . . 1 . 1 Active Scanning Responses . | . . . . . . . . . . . Cargo Convoy Interrupts . | . . . . . . . . . . . Stealth | -11 -10 -9 -9 -8 -7 -6 -5 -4 -4 -3 --------- Run | Scr Mat Mat Sto Mat Fac Fac Fac Fac Ext Res Distress Signals 16 | . 1 3 3 3 . . . . 2 4 Communications Jammed 240 | . . . . . . . . 10 199 31 Distress Signals 239 | . . . . . . . . 9 199 31 Times Spotted 301 | . 31 35 53 40 4 3 12 26 27 70 Peak Tracking Total 19 | . 5 7 10 9 1 2 5 4 6 19 Tactical Retreats 35 | . 2 3 2 10 . . 1 5 . 12 Traps | -11 -10 -9 -9 -8 -7 -6 -5 -4 -4 -3 ------- Run | Scr Mat Mat Sto Mat Fac Fac Fac Fac Ext Res Traps Triggered 4 | . 3 1 . . . . . . . . Indirectly . | . . . . . . . . . . . Trap Hack Attempts . | . . . . . . . . . . . Triggered . | . . . . . . . . . . . Disarmed . | . . . . . . . . . . . Reprogrammed . | . . . . . . . . . . . Reused . | . . . . . . . . . . . Traps Extracted . | . . . . . . . . . . . Installed . | . . . . . . . . . . . Triggered 1 | . . . . 1 . . . . . . Machines | -11 -10 -9 -9 -8 -7 -6 -5 -4 -4 -3 ---------- Run | Scr Mat Mat Sto Mat Fac Fac Fac Fac Ext Res Machines Disabled 18 | . . 4 6 3 1 . 1 . . 3 Max in Single Turn 2 | . . 1 2 1 1 . 1 . . 1 Garrison Access 3 | . . . 1 . . . . 1 . 1 Machines Sabotaged . | . . . . . . . . . . . Garrisons Compromised . | . . . . . . . . . . . Overloaded Fab Kills . | . . . . . . . . . . . Hacking | -11 -10 -9 -9 -8 -7 -6 -5 -4 -4 -3 --------- Run | Scr Mat Mat Sto Mat Fac Fac Fac Fac Ext Res Machines Accessed 67 | . 6 10 7 4 7 2 7 9 10 5 Terminals 43 | . 4 8 6 3 2 1 3 4 10 2 Fabricators 3 | . . . . . 1 . 1 1 . . Repair Stations 3 | . . . . . 1 1 . 1 . . Recycling Units 7 | . 2 1 . . . . 1 2 . 1 Scanalyzers 8 | . . 1 . 1 2 . 2 . . 2 Garrison Access 3 | . . . 1 . 1 . . 1 . . Total Hacks 186 | . 15 33 19 16 19 6 24 22 22 10 Successful 93 | . 9 17 7 8 11 3 14 11 10 3 Failed 92 | . 6 15 12 8 8 3 10 11 12 7 Catastrophic 17 | . 1 1 4 . 1 . 1 3 5 1 Database Lockouts 1 | . . 1 . . . . . . . . Manual 59 | . 8 22 5 7 7 3 2 3 . 2 Terminals 117 | . 12 27 17 11 4 3 8 9 22 4 Fabricators 11 | . . . . . 4 . 5 2 . . Repair Stations 10 | . . . . . 4 3 . 3 . . Recycling Units 15 | . 3 1 . . . . 1 7 . 3 Scanalyzers 28 | . . 5 . 5 5 . 10 . . 3 Garrison Access 5 | . . . 2 . 2 . . 1 . . Terminal Hacks 41 | . 7 11 5 4 . . 3 . 10 1 Part Schematic 2 | . 1 . 1 . . . . . . . Robot Analysis 3 | . 2 1 . . . . . . . . Prototype ID Bank 1 | . . 1 . . . . . . . . Open Door 9 | . . . 1 . . . . . 8 . Branch Access Points 4 | . 1 1 . 1 . . . . . 1 Emergency Access Points 2 | . . 2 . . . . . . . . Terminal Index 1 | . . 1 . . . . . . . . Alert Level 2 | . . 1 . . . . . . 1 . Unreport Threat 6 | . 1 1 1 2 . . 1 . . . Locate Traps 5 | . 1 . 1 1 . . 1 . 1 . Hauler Manifests 1 | . . 1 . . . . . . . . Registered Components 1 | . 1 . . . . . . . . . Zone Layout 4 | . . 2 1 . . . 1 . . . Fabricator Hacks 4 | . . . . . . . 2 2 . . Load Schematic 2 | . . . . . . . 1 1 . . Build 2 | . . . . . . . 1 1 . . Repair Station Hacks 8 | . . . . . 4 2 . 2 . . Scan Component 4 | . . . . . 2 1 . 1 . . Repair 4 | . . . . . 2 1 . 1 . . Recycling Unit Hacks 6 | . . . . . . . 1 5 . . Process 1 | . . . . . . . . 1 . . Report Inventory 4 | . . . . . . . 1 3 . . Retrieve Matter 1 | . . . . . . . . 1 . . Scanalyzer 20 | . . 3 . 4 4 . 8 . . 1 Insert Component 11 | . . 2 . 2 2 . 4 . . 1 Analyze 9 | . . 1 . 2 2 . 4 . . . Garrison Access Hacks 2 | . . . 1 . . . . 1 . . Seal Access 2 | . . . 1 . . . . 1 . . Unauthorized Hacks 12 | . 2 3 1 . 3 1 . 1 . 1 Terminals 5 | . . 2 . . 2 1 . . . . Botnet 4 | . . 1 . . 2 1 . . . . Operators 1 | . . 1 . . . . . . . . Fabricators . | . . . . . . . . . . . Repair Stations . | . . . . . . . . . . . Recycling Units 5 | . 2 1 . . . . . 1 . 1 Recyclers 2 | . . . . . . . . 1 . 1 Tunnel 3 | . 2 1 . . . . . . . . Scanalyzers . | . . . . . . . . . . . Garrison Access 2 | . . . 1 . 1 . . . . . Watchers 2 | . . . 1 . 1 . . . . . Data Cores Recovered . | . . . . . . . . . . . Used . | . . . . . . . . . . . Hacking Detections 57 | . 4 8 8 4 7 2 6 6 7 5 Full Trace Events 11 | . . 2 3 2 . . 1 1 2 . Feedback Events . | . . . . . . . . . . . Feedback Blocked . | . . . . . . . . . . . Robot Schematics Acquired . | . . . . . . . . . . . Robots Built 1 | . . . . . . . 1 . . . Authchips . | . . . . . . . . . . . Time 40 | . . . . . . . 40 . . . Total Robot Build Rating 1 | . . . . . . . 1 . . . Part Schematics Acquired 9 | . 1 1 1 1 2 . 3 . . . Parts Built 2 | . . . . . . . . 2 . . Authchips . | . . . . . . . . . . . Time 84 | . . . . . . . . 84 . . Total Part Build Rating 8 | . . . . . . . . 8 . . Parts Repaired 4 | . . . . . 2 1 . 1 . . Time 128 | . . . . . 96 10 . 22 . . Parts Recycled . | . . . . . . . . . . . Recycled Matter 261 | . . . . . . . . 261 . . Retrieved Matter 352 | . . . . . . . . 352 . . Retrieved Components . | . . . . . . . . . . . Parts Scanalyzed 10 | . . 2 . 2 2 . 3 . . 1 Part Schematics Acquired 7 | . . 1 . 1 2 . 3 . . . Parts Damaged 1 | . . . . . 1 . . . . . Bothacking | -11 -10 -9 -9 -8 -7 -6 -5 -4 -4 -3 ------------ Run | Scr Mat Mat Sto Mat Fac Fac Fac Fac Ext Res Used RIF Installer . | . . . . . . . . . . . Robots Hacked . | . . . . . . . . . . . Non-combat . | . . . . . . . . . . . Combat . | . . . . . . . . . . . Robot Hacks Applied . | . . . . . . . . . . . Relay Couplers Released 2 | . . . . . . . . 1 . 1 Machine Destruction 2 | . . . . . . . . 1 . 1 Fabnet Peak Effective % . | . . . . . . . . . . . Robots Rewired 6 | . . . . . . . . . 6 . Allies Hacked . | . . . . . . . . . . . Hacks Repelled . | . . . . . . . . . . . Allies | -11 -10 -9 -9 -8 -7 -6 -5 -4 -4 -3 -------- Run | Scr Mat Mat Sto Mat Fac Fac Fac Fac Ext Res Total Allies 30 | . . . 12 . . . 1 . 17 . Largest Group 14 | . . . 12 . . . 1 . 14 4 Highest-Rated Group 722 | . . . 150 . . . 10 . 722 297 Highest-Rated Ally 159 | . . . 31 . . . 10 . 159 159 Total Orders 8 | . . . . . . . 7 1 . . STAY 2 | . . . . . . . 2 . . . FOLLOW 3 | . . . . . . . 3 . . . TUNNEL 1 | . . . . . . . 1 . . . RETURN 2 | . . . . . . . 1 1 . . Ally Attacks 176 | . . . 61 . . . . . 77 38 Total Damage 4015 | . . . 757 . . . . . 2316 942 Kills 31 | . . . 11 . . . . . 12 8 Allies Corrupted 1 | . . . . . . . . . 1 . Allies Melted . | . . . . . . . . . . . Intel | -11 -10 -9 -9 -8 -7 -6 -5 -4 -4 -3 ------- Run | Scr Mat Mat Sto Mat Fac Fac Fac Fac Ext Res Robot Analysis Total 3 | . 2 1 . . . . . . . . Derelict Logs Recovered . | . . . . . . . . . . . Drone Launches 5 | . . . . . . . 1 4 . . Drone Recoveries 3 | . . . . . . . 1 2 . . Exploration | -11 -10 -9 -9 -8 -7 -6 -5 -4 -4 -3 ------------- Run | Scr Mat Mat Sto Mat Fac Fac Fac Fac Ext Res Turns Passed 12852 | 115 1683 1606 1328 951 1064 296 987 2115 915 1792 Spaces Moved 8263 | 58 867 827 661 532 749 243 678 1540 502 1606 Core 27 | 13 . . . . . . . . . 14 Treads 608 | . 245 249 111 . . . . . . 3 Legs 130 | 45 85 . . . . . . . . . Wheels 6297 | . 537 578 550 511 749 243 678 1540 502 409 Hover 956 | . . . . . . . . . . 956 Flight 245 | . . . . 21 . . . . . 224 Fastest Speed 32 | 50 100 115 120 100 96 100 100 100 100 32 Average Speed 113 | 128 155 145 141 116 101 100 100 107 123 77 Slowest Speed 320 | 250 240 240 240 247 110 100 100 115 210 320 Overloaded Moves . | . . . . . . . . . . . Propulsion Burnouts . | . . . . . . . . . . . Robots Hopped 1 | . . . . . . . . . . 1 Cave-ins Triggered . | . . . . . . . . . . . Exploration Rate (%) 36 | 5 99 57 84 42 14 5 12 20 41 23 Regions Visited 10 Branch Regions 2 Pre-discovered Areas 3 | . 2 1 . . . . . . . . Known Exits Taken 6 | . . 1 . . 1 1 1 1 1 . Unknown Exits Taken 4 | 1 1 . 1 1 . . . . . . Scrap Searched . | . . . . . . . . . . . Spaces Dug 88 | . . 2 2 1 7 4 18 13 . 41 Terrain Destroyed 540 | . . 2 64 137 7 4 54 106 46 120 Melee 88 | . . 2 2 1 7 4 18 13 . 41 Projectile 2 | . . . . . . . . . . 2 AOE 450 | . . . 62 136 . . 36 93 46 77 Terrain Rammed . | . . . . . . . . . . . Walls Destroyed . | . . . . . . . . . . . Machines Disabled . | . . . . . . . . . . . Actions | -11 -10 -9 -9 -8 -7 -6 -5 -4 -4 -3 --------- Run | Scr Mat Mat Sto Mat Fac Fac Fac Fac Ext Res Total 10473 | 82 1048 1039 842 715 1037 282 889 1881 678 1980 Wait 762 | 6 51 33 17 29 199 22 116 178 6 105 Move 8251 | 57 866 826 660 531 748 242 677 1539 501 1604 Hop 1 | . . . . . . . . . . 1 Pick Up 170 | 5 21 14 6 15 27 5 10 26 12 29 Fast Attach 91 | 7 2 11 3 5 6 . 4 5 12 36 Attach 74 | . 6 7 1 11 6 2 7 8 11 15 Detach 26 | . 1 2 . . 2 . 1 1 2 17 Swap 152 | 1 7 15 19 17 8 1 8 25 21 30 Drop 145 | . 8 25 12 7 26 2 7 21 7 30 Fire 404 | 6 86 104 93 61 . . 13 10 9 22 Melee 345 | . . 2 30 39 15 8 45 66 49 91 Ram 2 | . . . . . . . 1 . 1 . Kick . | . . . . . . . . . . . Crush . | . . . . . . . . . . . Escape Stasis . | . . . . . . . . . . . Rewire 48 | . . . 1 . . . . . 47 . Trap . | . . . . . . . . . . . Miscellaneous 2 | . . . . . . . . 2 . . Route ------- -11/Scrapyard -10/Materials (discovered 5 exits: *Mat x3 / *Min x2) -9/Materials (discovered 4 exits: *Mat x2 / Min / *Sto) -9/Storage -8/Materials -7/Factory -6/Factory -5/Factory -4/Factory -4/Extension -3/Research (discovered 2 exits: Qua x2) History --------- Turn | Location | Event 33 | -11/Scrapyard | Discovered new exit (range 15) 116 | -11/Scrapyard | Entered Materials 314 | -10/Materials | Build established: Mutant 407 | -10/Materials | Discovered new exit (range 16) 539 | -10/Materials | Discovered new exit (range 16) 885 | -10/Materials | Core integrity fell below 50% 1104 | -10/Materials | Discovered new exit (range 9) 1183 | -10/Materials | Discovered new exit (range 10) 1362 | -10/Materials | Identified exit to Mines 1523 | -10/Materials | Discovered new exit (range 10) 1799 | -10/Materials | Entered another Materials area 1799 | -9/Materials | Evolved 2 slots: Propulsion x2 2049 | -9/Materials | Lost 6 parts (1p3n1u1w) 2426 | -9/Materials | Discovered new exit (range 9) 2492 | -9/Materials | Identified exit to Mines 2492 | -9/Materials | Identified exit to Storage 2680 | -9/Materials | Build established: Scavenger-Mutant 2788 | -9/Materials | Central database locked down 3308 | -9/Materials | Discovered new exit (range 15) 3405 | -9/Materials | Entered Storage 3550 | -9/Storage | Core integrity fell below 50% 3891 | -9/Storage | Build established: Mutant 3914 | -9/Storage | Discovered new exit (range 16) 4004 | -9/Storage | Assisted by bots powering up and referring to "LRC-V3" 4033 | -9/Storage | Met a pair of Derelict thieves 4205 | -9/Storage | First assault squad dispatched 4398 | -9/Storage | Build established: Scavenger-Mutant 4727 | -9/Storage | Core integrity fell below 20% 4733 | -9/Storage | Entered Materials 4733 | -8/Materials | Evolved 2 slots: Utility x2 5217 | -8/Materials | Lost 8 parts (1p4n1u2w) 5591 | -8/Materials | Core integrity fell below 50% 5607 | -8/Materials | Discovered new exit (range 14) 5639 | -8/Materials | Core integrity fell below 20% 5672 | -8/Materials | Lost 5 parts (1p1n2u1w) 5684 | -8/Materials | Entered Factory 5684 | -7/Factory | Evolved 2 slots: Utility x2 5708 | -7/Factory | Build established: Mutant 6320 | -7/Factory | Repaired Broken Drone Bay 6348 | -7/Factory | Repaired Lrg. Storage Unit 6557 | -7/Factory | Discovered new exit (range 8) 6569 | -7/Factory | Identified exit to Factory 6748 | -7/Factory | Entered another Factory area 6748 | -6/Factory | Evolved 2 slots: Utility x1, Weapon x1 6787 | -6/Factory | Repaired Arm. Wheel 6874 | -6/Factory | Build established: Assassin 7016 | -6/Factory | Discovered new exit (range 6) 7021 | -6/Factory | Identified exit to Factory 7044 | -6/Factory | Entered another Factory area 7044 | -5/Factory | Evolved 2 slots: Utility x2 7140 | -5/Factory | Fabricated T-07 Excavator? 7367 | -5/Factory | P-70 Sage assimilated allied Excavator 6a 7421 | -5/Factory | Lost 3 parts (3u) 7970 | -5/Factory | Build established: Hacker-Assassin 8024 | -5/Factory | Discovered new exit (range 6) 8030 | -5/Factory | Identified exit to Factory 8031 | -5/Factory | Entered another Factory area 8031 | -4/Factory | Evolved 2 slots: Power x1, Utility x1 8066 | -4/Factory | Repaired Arm. Huge Wheel 8228 | -4/Factory | Fabricated Arm. Huge Wheel? 9187 | -4/Factory | Garrison activated, responded to threat 9986 | -4/Factory | Build established: Hacker-Gladiator 10118 | -4/Factory | Discovered new exit (range 20) 10145 | -4/Factory | Identified exit to Extension 10146 | -4/Factory | Entered Extension 10278 | -4/Extension | Lost 4 parts (1p3u) 10534 | -4/Extension | Rescued a captive Derelict 10534 | -4/Extension | Rescued a captive Derelict 10580 | -4/Extension | Lost 4 parts (1n1u2w) 10689 | -4/Extension | Rescued A7 10832 | -4/Extension | Rescued a captive Derelict 10833 | -4/Extension | Rescued a captive Derelict 10836 | -4/Extension | Rescued a captive Derelict 10857 | -4/Extension | Rescued a captive Derelict 10858 | -4/Extension | Rescued a captive Derelict 10877 | -4/Extension | Rescued a captive Derelict 10878 | -4/Extension | Rescued a captive Derelict 10914 | -4/Extension | Rescued a captive Derelict 10930 | -4/Extension | Spotted B-86 Titan 10940 | -4/Extension | Spotted B-86 Titan 10963 | -4/Extension | Destroyed B-86 Titan 10974 | -4/Extension | Allies destroyed B-86 Titan 11046 | -4/Extension | Disrupted transfer network 11058 | -4/Extension | Discovered new exit (range 3) 11058 | -4/Extension | Identified exit to Research 11059 | -4/Extension | Build established: Mutant 11061 | -4/Extension | Entered Research 11061 | -3/Research | Accompanied by 4 allies (A7) 11061 | -3/Research | Evolved 2 slots: Utility x2 11196 | -3/Research | Found Powered Armor 11199 | -3/Research | Found Powered Armor 11819 | -3/Research | Lost 8 parts (1p4n2u1w) 11857 | -3/Research | First assault squad dispatched 11936 | -3/Research | Core integrity fell below 50% 11953 | -3/Research | Lost 11 parts (3p4n3u1w) 12049 | -3/Research | Identified exit to Quarantine 12292 | -3/Research | Found Powered Armor 12656 | -3/Research | Build established: Scavenger-Scout 12760 | -3/Research | Found Prototype Processor 12760 | -3/Research | Identified Spectral Analyzer 12850 | -3/Research | Core integrity fell below 20% 12853 | -3/Research | Destroyed by H-77 Assassin with High-powered Shotgun Last Messages --------------- 12849_ U-05 Engineer builds a Wall. 12849_ S-43 Plague destroyed. 12849_ U-05 Engineer destroyed. 12850_ U-05 Engineer lays Concrete. 12850_ C-30 ARC bursts open, deploying its payload. 12850_ G-73 Enforcer unfolds itself. 12850_ G-67 Veteran unfolds itself. 12850_ L-61 Swordsman unfolds itself. 12850_ G-67 Veteran unfolds itself. 12850_ E-15 Imp unfolds itself. 12851_ Slug penetrates U-05 Engineer. 12851_ U-05 Engineer destroyed. 12851_ Slug penetrates Wall. 12851_ U-05 Engineer builds a Wall. 12851_ U-05 Engineer lays Concrete. 12851_ K-01 Serf collects debris. 12852_ Phasing Sabre destroyed. 12852_ U-05 Engineer lays Concrete. 12853_ Tiamat Missile Launcher destroyed. 12853_ Penetrated by Slug. Map ----- +----------------------------------------------------+ | ?????????????# """ """=*#????# #????????????? | | ?????????????# =% [%=[!##???# #????????????? | | ?????????????# !!%[%=##???#% #????????????? | | ?????????????# """""="%%##???# % #????????????? | | ?????????????# """"""" #????# #????????????? | | ?????????????# """"""" =#????# #????????????? | | ??############ * =#????# #????????????? | | ??# """"" ## !%* = #????# #????????????? | | ??# """"" ##+#####+########### # ???????? | | ??# """"" ## ### =%= + ????????? | | ??# """"" + = #????????????? | | ??# # #????????????? | | ??# [! # ### #????????????? | | ??# # #?#########+##### #????????????? | | ??# # #??# # #????????????? | | ??##""" ### #??# # #????????????? | | ???#"""S""#?# #??# # /????????????? | | ???#""""""#?# #### [ # #????????????? | | ###########?# + # #????????????? | | ########## ##+########### #????????????? | | ## # # #????????????? | | ##%#* # ##########???? | | ##########+###### # # # #???? | | ##"#??# !#?# # + + #???? | | # ?# ### # # #???? | | + # """ ! + @ u # # #???? | | # # """ # !se # # #???? | | # # """ # l%g # # #???? | | # # + % !######R # #???? | | # # == ### gp %= # # #???? | | # # = = #?# gphhh + # =#???? | | ####### ] ! #?# # # ##"#######???? | | #?????##########?# # " # ####?????????? | | #????????????????# T # ############## | | #????????????????# # | | #????????????????# # | | ?????????????????# # | | ????????????????? ###/## | | ????????????????? ##### R ## | | ?# #####+## ####T ## # | | ???+ / + | | ???# # ######+############### | | ????????????# #??? ???????###??# | | ????????? / #? ??????????# | | ????? ######### #"""" ?????????# | | ???? ?????????# #"""" #???????# | | ???? ???????????# #"""" #???????# | | ?????##???????????? #"""" #???????## | | ?????????????????? ] #?" #????????? | | ?????????????????# #? #????????? | +----------------------------------------------------+ Best States ------------- Heat Dissipation 46 Energy Generation 37 Energy Capacity 515 Matter Stores 550 Matter Capacity 550 Sight Range 20 Robot Scan Range 16 Terrain Scan Density 10 ECM Strength 1 Jamming Range 16 Additional Mass Support 16 EM Shielding 3 Armor Coverage 800 Core Shielding 30 Phase Shifting 5 Evasion (%) 63 Melee Accuracy 16 Target Analysis 12 Recoil Reduction 2 Energy Filtering 50 Offensive Hacking 10 Defensive Hacking 10 Authchip Count 6 Item Schematics ----------------- Med. Storage Unit | -10/Materials | Hacked Weight Redist. System | -9/Materials | Scanalyzed Chainsword | -9/Storage | Hacked Hacking Suite | -8/Materials | Scanalyzed Drone Bay | -7/Factory | Scanalyzed Arm. Huge Wheel | -7/Factory | Scanalyzed Imp. Medium Armor Plating | -5/Factory | Scanalyzed Arm. Wheel | -5/Factory | Scanalyzed Plasma Sword | -5/Factory | Scanalyzed Robot Schematics ------------------ None Fabricated ------------ T-07 Excavator | x1 | -5/Factory | Preloaded Arm. Huge Wheel | x2 | -4/Factory Alien Tech Used ----------------- None Achievements -------------- Dangerous Findings Just What I Needed Oops Part-time Excavator Prison Break Prolific Hacker Respectable Loadout Total Silence Universal Adapter Challenges ------------ None Game ------ Seed SigixDamperSplitter Manual? 0 Play Time 04:01:00 Cumulative 12.5 hours Start 2022.04.26 @ 07:45:44 End 2022.04.30 @ 19:23:18 Sessions 11 Manual Loads 0 Difficulty Rogue Special Mode None Game No. 4 Rogue 4 Adventurer 0 Explorer 0 Win Type - Total 0 Types 0/0/0/0/0/0/0/0/0 Lore% 3 Gallery% 15 Achievement% 19 Wizard Run 0 Options --------- ASCII 0 Keyboard 0 Movement Numpad Keybinds 0 Fullscreen 1 Font 18/SmallcapsGlow Map View 76x50 Tactical HUD 1 Map Filters NONE Filters NONE Steam 1 RUN: 6fd37817-d643-4184-a9c8-16ec61b070b0